bitfinex-derivatives/quotes_SOLF0:USTF0_20241127
["timestamp","ask_amount","ask_price","bid_price","bid_amount"]
[1732720355867,2.8,238.56,238.41,10.0763075]
[1732720355868,2.0958,238.52,238.41,10.0763075]
[1732720356067,10.0763075,238.53,238.38,1.3131]
[1732720356272,10.0763075,238.5,238.4,2.0967]
[1732720356474,2.8,238.49,238.4,2.0967]
[1732720356771,2.8,238.49,238.41,2.0966]
[1732720357167,10.0763075,238.53,238.37,1.3001]
[1732720357369,2.0958,238.51,238.44,2.0963]
[1732720357567,2.8,238.52,238.39,10.0763075]
[1732720358071,10.0763075,238.53,238.45,2.0963]
[1732720358072,2.8,238.51,238.45,2.0963]
[1732720358264,2.8,238.51,238.39,10.0763075]
[1732720358466,2.8,238.51,238.37,1.3001]
[1732720358671,2.8,238.51,238.39,10.0763075]
[1732720358873,10.0763075,238.53,238.39,10.0763075]
[1732720359062,4.8957,238.52,238.46,2.0962]
[1732720359262,4.8957,238.52,238.39,10.0763075]
[1732720359263,2.8,238.51,238.39,10.0763075]
[1732720359474,2.8,238.51,238.42,2.0965]
[1732720359675,2.8,238.51,238.39,10.0763075]
[1732720359864,2.8,238.51,238.37,7.01450439]
[1732720360070,2.8,238.51,238.4,10.0763075]
[1732720360269,2.8,238.51,238.38,5.71440439]
[1732720360473,2.8,238.51,238.39,10.0763075]
[1732720360772,2.8,238.5,238.39,10.0763075]
[1732720360973,4.8959,238.5,238.39,10.0763075]
[1732720361169,2.8,238.5,238.37,7.01450439]
[1732720361472,2.8,238.5,238.37,1.3001]
[1732720361877,4.8959,238.5,238.4,2.0967]
[1732720362076,2.8,238.5,238.37,1.3001]
[1732720362578,2.8,238.5,238.39,10.0763075]
[1732720362970,2.8,238.5,238.37,1.3001]
[1732720363372,2.096,238.49,238.37,1.3001]
[1732720363573,2.8,238.5,238.37,1.3001]
[1732720364475,12.8763075,238.5,238.37,1.3001]
[1732720365370,2.601,238.49,238.37,1.3001]
[1732720365770,2.0964,238.45,238.39,2.0968]
[1732720365975,2.601,238.49,238.37,1.3001]
[1732720366177,2.0963,238.45,238.4,2.0967]
[1732720366385,2.601,238.49,238.37,1.3001]
[1732720367484,2.601,238.49,238.3,5.71440439]
[1732720367677,10.0763075,238.47,238.32,10.0763075]
[1732720368484,2.0965,238.44,238.37,2.0969]
[1732720368787,2.8,238.43,238.32,10.0763075]
[1732720369179,2.8,238.43,238.37,2.0969]
[1732720369180,4.8965,238.43,238.37,2.0969]
[1732720369379,2.8,238.43,238.32,10.0763075]
[1732720369782,2.8,238.43,238.38,2.0968]
[1732720370183,2.8,238.43,238.35,2.0972]
[1732720370386,2.8,238.43,238.32,10.0763075]
[1732720370886,2.8,238.43,238.4,2.0967]
[1732720371086,2.8,238.43,238.32,10.0763075]
[1732720372282,2.8,238.43,238.37,2.0969]
[1732720372484,2.8,238.43,238.31,1.2413]
[1732720372788,2.8,238.43,238.31,11.3176075]
[1732720372985,2.8,238.43,238.38,2.0969]
[1732720373381,2.8,238.43,238.31,11.3176075]
[1732720373586,2.8,238.43,238.37,2.097]
[1732720373786,2.8,238.43,238.31,11.3176075]
[1732720374685,2.8,238.42,238.31,11.3176075]
[1732720376593,2.8,238.43,238.37,2.0969]
[1732720376783,2.8,238.43,238.31,11.3176075]
[1732720377290,2.601,238.49,238.39,2.0967]
[1732720377491,4.8961,238.48,238.35,10.0763075]
[1732720377888,2.8,238.48,238.41,2.0966]
[1732720378087,2.0962,238.47,238.41,2.0966]
[1732720378283,2.8,238.48,238.35,10.0763075]
[1732720378488,2.8,238.47,238.35,10.0763075]
[1732720378684,2.0963,238.46,238.32,10.0763075]
[1732720379091,2.0963,238.46,238.39,2.0968]
[1732720379392,12.8763075,238.47,238.39,2.0968]
[1732720379593,2.0963,238.45,238.39,2.0968]
[1732720380090,2.0962,238.46,238.32,10.0763075]
[1732720380292,12.8763075,238.47,238.32,10.0763075]
[1732720380593,14.9724075,238.47,238.32,10.0763075]
[1732720381093,2.0962,238.46,238.32,10.0763075]
[1732720381690,4.8962,238.46,238.32,10.0763075]
[1732720382291,2.0962,238.46,238.39,2.0968]
[1732720382494,4.8962,238.46,238.39,2.0968]
[1732720382994,2.0963,238.45,238.39,2.0968]
[1732720383799,2.8,238.46,238.32,10.0763075]
[1732720384496,4.8963,238.46,238.32,10.0763075]
[1732720384696,2.8,238.46,238.32,10.0763075]
[1732720385501,2.0964,238.45,238.4,2.0967]
[1732720385798,2.0964,238.45,238.32,10.0763075]
[1732720386396,6.48599788,238.43,238.35,6.48599788]
[1732720386596,6.48599788,238.43,238.33,6.48599788]
[1732720387293,6.48599788,238.41,238.31,1.2413]
[1732720387593,6.48599788,238.39,238.31,7.72729788]
[1732720387989,6.48599788,238.39,238.36,2.097]
[1732720388196,6.48599788,238.41,238.36,2.097]
[1732720388594,6.48599788,238.37,238.35,2.0972]
[1732720388791,6.48599788,238.37,238.31,1.2413]
[1732720388995,6.48599788,238.35,238.31,1.2413]
[1732720390294,6.48599788,238.35,238.26,6.48599788]
[1732720390498,8.58329788,238.35,238.29,2.0977]
[1732720391201,2.0973,238.34,238.28,2.0978]
[1732720391399,6.48599788,238.33,238.28,2.0978]
[1732720391593,6.48599788,238.33,238.26,6.48599788]
[1732720391900,2.8,238.38,238.26,6.48599788]
[1732720392095,2.601,238.49,238.3,6.48599788]
[1732720392296,2.601,238.49,238.28,10.13715811]
[1732720392297,10.13715811,238.43,238.28,10.13715811]
[1732720392597,2.8,238.42,238.31,10.13715811]
[1732720392793,2.8,238.42,238.24,2.8]
[1732720393092,2.8,238.42,238.26,22.68715811]
[1732720393301,2.8,238.42,238.26,10.13715811]
[1732720394099,2.601,238.49,238.32,10.13715811]
[1732720394295,9.94824475,238.48,238.42,2.0966]
[1732720394489,2.0961,238.48,238.33,3.8013]
[1732720394691,4.8961,238.48,238.33,3.8013]
[1732720395102,10.13715811,238.46,238.33,3.8013]
[1732720395293,10.13715811,238.43,238.33,1.2564]
[1732720395489,2.0967,238.4,238.33,1.2564]
[1732720395693,10.13715811,238.43,238.33,1.2564]
[1732720395901,2.8,238.42,238.33,1.2564]
[1732720396397,10.13715811,238.4,238.33,1.2564]
[1732720396998,2.0969,238.38,238.33,1.2564]
[1732720397400,10.13715811,238.4,238.33,1.2564]
[1732720397799,2.0969,238.39,238.33,1.2564]
[1732720397998,10.13715811,238.4,238.33,3.3537]
[1732720398400,12.23385811,238.4,238.33,1.2564]
[1732720398603,12.23385811,238.4,238.33,3.3537]
[1732720398902,12.23385811,238.4,238.33,1.2564]
[1732720398903,10.13715811,238.4,238.33,1.2564]
[1732720399103,10.13715811,238.37,238.26,2.5449]
[1732720399294,10.13715811,238.37,238.3,2.0976]
[1732720399499,10.13715811,238.37,238.27,1.3117]
[1732720400206,10.13715811,238.4,238.27,1.3117]
[1732720400802,4.8966,238.42,238.27,1.3117]
[1732720400998,10.13715811,238.46,238.31,10.13715811]
[1732720401203,8.48539587,238.45,238.31,10.13715811]
[1732720401399,7.85790089,238.44,238.36,2.0971]
[1732720401799,12.93715811,238.46,238.36,2.0971]
[1732720402003,8.48623321,238.45,238.36,2.0971]
[1732720402301,0.62747356,238.45,238.36,2.0971]
[1732720402611,2.0965,238.43,238.36,2.0971]
[1732720403100,2.0964,238.44,238.35,2.0971]
[1732720403301,2.0964,238.44,238.31,10.13715811]
[1732720403804,2.0966,238.42,238.36,2.097]
[1732720403999,12.93715811,238.46,238.31,10.13715811]
[1732720404199,7.8598016,238.45,238.31,10.13715811]
[1732720404400,10.13715811,238.46,238.31,10.13715811]
[1732720404602,12.93715811,238.46,238.31,10.13715811]
[1732720404903,10.13715811,238.46,238.4,2.0965]
[1732720405094,2.601,238.49,238.34,10.13715811]
[1732720405095,2.8,238.48,238.34,10.13715811]
[1732720405296,2.8,238.48,238.37,10.13715811]
[1732720405497,2.601,238.49,238.42,2.0963]
[1732720405701,12.73815811,238.49,238.38,1.3094]
[1732720406103,1.2799,238.49,238.38,1.3094]
[1732720406303,8.48816138,238.48,238.38,1.3094]
[1732720406507,1.2799,238.49,238.38,1.3094]
[1732720406806,1.2799,238.49,238.43,2.0962]
[1732720407007,1.2799,238.49,238.38,1.3094]
[1732720407599,10.13715811,238.52,238.38,1.3094]
[1732720407600,12.23275811,238.52,238.38,1.3094]
[1732720407799,1.2534,238.55,238.43,10.13715811]
[1732720408205,1.2534,238.55,238.4,10.13715811]
[1732720408406,1.2337,238.56,238.4,10.13715811]
[1732720408605,2.0953,238.55,238.47,2.0959]
[1732720408810,1.2337,238.56,238.43,12.93715811]
[1732720409110,1.2337,238.56,238.43,2.8]
[1732720409305,2.0954,238.54,238.43,2.8]
[1732720410010,2.0954,238.54,238.47,2.0959]
[1732720411115,2.0952,238.55,238.47,2.0959]
[1732720411510,1.2534,238.6,238.43,12.93715811]
[1732720411511,11.39055811,238.6,238.43,12.93715811]
[1732720411710,8.47742676,238.59,238.46,10.13715811]
[1732720411923,11.39055811,238.6,238.46,10.13715811]
[1732720412216,2.095,238.58,238.46,10.13715811]
[1732720412418,2.095,238.58,238.46,12.19254368]
[1732720412915,2.0951,238.56,238.46,10.13715811]
[1732720414213,2.0951,238.56,238.49,2.0957]
[1732720414811,2.0954,238.53,238.46,2.096]
[1732720415214,11.39055811,238.6,238.43,12.93715811]
[1732720415509,2.0951,238.57,238.49,2.0957]
[1732720415905,2.0951,238.57,238.46,10.13715811]
[1732720416215,2.0951,238.57,238.5,2.0956]
[1732720417012,1.2534,238.6,238.46,10.13715811]
[1732720417313,1.2534,238.6,238.49,10.13715811]
[1732720417508,1.2534,238.6,238.46,10.13715811]
[1732720418111,11.39055811,238.6,238.48,2.0957]
[1732720418609,11.39055811,238.6,238.44,2.8]
[1732720419007,11.39055811,238.6,238.49,2.0957]
[1732720419814,2.0952,238.56,238.49,2.0957]
[1732720420412,11.39055811,238.6,238.44,2.8]
[1732720420413,10.13715811,238.57,238.44,2.8]
[1732720420613,2.78,238.56,238.44,2.8]
[1732720420817,3.9925,238.56,238.44,2.8]
[1732720421110,0.62704767,238.55,238.46,2.0959]
[1732720421317,3.9925,238.56,238.41,10.13715811]
[1732720421516,3.9925,238.56,238.39,4.0256]
[1732720421517,10.13715811,238.54,238.39,4.0256]
[1732720421711,10.13715811,238.54,238.44,2.0962]
[1732720422411,10.13715811,238.54,238.39,4.0256]
[1732720422412,3.9925,238.56,238.41,10.13715811]
[1732720423016,3.9925,238.56,238.47,2.0959]
[1732720423218,3.9925,238.56,238.41,10.13715811]
[1732720423516,6.0877,238.56,238.41,10.13715811]
[1732720423710,6.0877,238.56,238.46,2.0959]
[1732720423915,6.0877,238.56,238.41,10.13715811]
[1732720424116,1.2125,238.56,238.44,10.13715811]
[1732720425011,1.2125,238.56,238.5,2.0956]
[1732720425315,1.2125,238.56,238.45,10.13715811]
[1732720425509,32.7,238.75,238.45,10.13715811]
[1732720425709,12.56735811,238.67,238.51,10.13715811]
[1732720425915,2.78,238.66,238.51,10.13715811]
[1732720426215,0.62681809,238.65,238.51,10.13715811]
[1732720426616,2.78,238.66,238.51,10.13715811]
[1732720426920,2.0946,238.63,238.54,2.0953]
[1732720427912,2.0947,238.62,238.54,2.0953]
[1732720428115,0.62685991,238.61,238.54,2.0953]
[1732720428519,3.40685991,238.63,238.5,10.13715811]
[1732720428714,2.78,238.63,238.5,10.13715811]
[1732720429118,2.78,238.63,238.56,2.0951]
[1732720429319,0.62683027,238.62,238.56,2.0951]
[1732720429615,0.62683027,238.62,238.53,2.0953]
[1732720429822,2.78,238.63,238.5,10.13715811]
[1732720430218,0.62685872,238.62,238.54,2.0953]
[1732720430621,0.62685872,238.62,238.5,10.13715811]
[1732720430820,2.78,238.63,238.48,2.585]
[1732720431517,4.8745,238.63,238.56,2.0951]
[1732720431722,2.78,238.63,238.56,2.0951]
[1732720432424,2.78,238.63,238.48,1.3051]
[1732720432826,2.0946,238.62,238.48,1.3051]
[1732720433016,2.78,238.63,238.58,2.0949]
[1732720433519,2.78,238.63,238.59,2.0948]
[1732720433921,12.23155811,238.65,238.59,2.0948]
[1732720434427,12.23155811,238.65,238.5,10.13715811]
[1732720434428,12.23155811,238.65,238.6,2.0948]
[1732720435729,2.4302,238.67,238.56,10.13715811]
[1732720436428,10.13715811,238.73,238.69,2.094]
[1732720436826,2.72030764,238.72,238.59,10.13715811]
[1732720437021,0.62660764,238.71,238.59,10.13715811]
[1732720437226,2.0937,238.72,238.57,1.2575]
[1732720437433,10.13715811,238.73,238.57,11.39465811]
[1732720437733,0.62662354,238.72,238.57,11.39465811]
[1732720438120,2.72032354,238.72,238.67,2.0941]
[1732720438432,2.0937,238.72,238.67,2.0941]
[1732720438634,2.0937,238.72,238.61,2.0946]
[1732720438929,2.0937,238.72,238.57,11.39465811]
[1732720439224,2.0937,238.72,238.67,2.0941]
[1732720439819,10.13715811,238.73,238.67,2.0941]
[1732720440027,12.23105811,238.7,238.57,1.2575]
[1732720440633,10.13715811,238.67,238.57,1.2575]
[1732720441027,10.13715811,238.7,238.65,2.0943]
[1732720441221,12.27823467,238.76,238.61,10.13715811]
[1732720441423,3.40664515,238.75,238.61,10.13715811]
[1732720441632,2.0936,238.73,238.65,2.0943]
[1732720441829,0.62657441,238.72,238.58,1.252]
[1732720442029,0.62657441,238.72,238.59,10.13715811]
[1732720442230,2.0936,238.73,238.59,10.13715811]
[1732720442429,0.62656132,238.72,238.59,10.13715811]
[1732720442630,2.0936,238.73,238.59,10.13715811]
[1732720442830,4.90826512,238.75,238.6,2.06221122]
[1732720443030,0.62655236,238.74,238.67,2.0941]
[1732720443230,0.62655236,238.74,238.62,12.91715811]
[1732720443429,0.62655236,238.78,238.65,10.13715811]
[1732720443630,2.5709,238.79,238.68,10.13715811]
[1732720443832,2.78,238.82,238.68,10.13715811]
[1732720444125,293.8435859,239.09,238.71,10.13715811]
[1732720444126,2.78,238.87,238.71,10.13715811]
[1732720444326,2.78,238.87,238.71,12.91715811]
[1732720444722,10.13715811,238.88,238.71,12.91715811]
[1732720444922,12.91715811,238.88,238.71,12.91715811]
[1732720445430,10.13715811,238.79,238.69,3.9977]
[1732720446023,2.0932,238.78,238.69,1.2177]
[1732720446224,10.13715811,238.76,238.65,2.78]
[1732720446428,12.23055811,238.76,238.68,2.0941]
[1732720446629,1.2873,238.78,238.65,2.78]
[1732720447225,2.0934,238.76,238.67,2.0941]
[1732720447429,2.0934,238.76,238.65,2.78]
[1732720447642,2.5152,238.78,238.65,2.78]
[1732720447831,2.0933,238.77,238.69,2.094]
[1732720448235,2.0933,238.77,238.65,2.78]
[1732720448236,2.78,238.81,238.65,12.91715811]
[1732720448830,10.13715811,238.82,238.68,10.13715811]
[1732720449028,2.78,238.83,238.73,2.0936]
[1732720449433,2.78,238.83,238.68,10.13715811]
[1732720449833,2.44,238.84,238.74,10.13715811]
[1732720450138,0.36372,238.85,238.78,2.0931]
[1732720450337,0.36372,238.85,238.72,2.78]
[1732720450527,0.36372,238.85,238.73,4.52490392]
[1732720450735,0.36372,238.85,238.73,14.66206203]
[1732720451037,0.36372,238.85,238.73,1.2538]
[1732720451438,10.13715811,238.84,238.73,1.2538]
[1732720452233,2.0931,238.8,238.73,1.2538]
[1732720452427,10.13715811,238.84,238.73,1.2538]
[1732720452827,0.36372,238.85,238.73,1.2538]
[1732720453040,0.36372,238.85,238.74,10.13715811]
[1732720453243,0.36372,238.85,238.79,2.0931]
[1732720453541,0.36372,238.85,238.77,10.13715811]
[1732720453842,0.36372,238.85,238.81,2.0929]
[1732720454138,0.36372,238.85,238.77,10.13715811]
[1732720455136,0.36372,238.85,238.76,2.0933]
[1732720455340,0.36372,238.85,238.74,10.13715811]
[1732720455736,2.45632,238.85,238.78,2.0932]
[1732720456933,10.50087811,238.85,238.73,1.2538]
[1732720457145,13.28087811,238.85,238.73,1.2538]
[1732720457437,13.28087811,238.85,238.75,2.0934]
[1732720457735,3.14372,238.85,238.73,11.39095811]
[1732720458734,3.14372,238.85,238.73,1.2538]
[1732720459141,3.14372,238.85,238.75,2.0934]
[1732720459142,2.0928,238.83,238.75,2.0934]
[1732720459337,2.0928,238.83,238.73,1.2538]
[1732720459532,3.14372,238.85,238.73,1.2538]
[1732720459533,13.28087811,238.85,238.73,1.2538]
[1732720459736,2.093,238.81,238.73,1.2538]
[1732720460738,13.28087811,238.85,238.73,3.3473]
[1732720460944,13.28087811,238.85,238.73,1.2538]
[1732720461337,2.0929,238.81,238.73,1.2538]
[1732720461537,13.28087811,238.85,238.73,1.2538]
[1732720463042,12.91715811,238.85,238.73,1.2538]
[1732720463543,2.0932,238.79,238.73,3.3474]
[1732720465843,2.093,238.81,238.75,2.0934]
[1732720466038,12.91715811,238.85,238.75,2.0934]
[1732720466244,12.91715811,238.85,238.73,1.2538]
[1732720466743,2.0931,238.8,238.74,2.0935]
[1732720468345,2.0933,238.78,238.73,1.2538]
[1732720468647,10.13715811,238.79,238.65,2.78]
[1732720469042,2.0934,238.76,238.7,2.0938]
[1732720469745,10.13715811,238.79,238.7,2.0938]
[1732720469746,2.0935,238.75,238.7,2.0938]
[1732720470754,2.0934,238.77,238.69,2.094]
[1732720470958,10.13715811,238.79,238.65,2.78]
[1732720471755,2.5079,238.8,238.67,10.13715811]
[1732720472360,2.0931,238.79,238.73,2.0936]
[1732720472659,2.78,238.84,238.7,10.13715811]
[1732720473952,2.78,238.84,238.74,2.0935]
[1732720473953,2.093,238.8,238.74,2.0935]
[1732720474761,2.093,238.8,238.7,10.13715811]
[1732720475162,2.0929,238.81,238.75,2.0935]
[1732720475459,2.78,238.84,238.75,2.0935]
[1732720476064,10.13715811,238.88,238.79,2.093]
[1732720476260,0.6261484,238.87,238.73,10.13715811]
[1732720476461,12.91715811,238.88,238.73,10.13715811]
[1732720476765,0.62610524,238.87,238.73,10.13715811]
[1732720476960,2.0928,238.83,238.77,2.0932]
[1732720477260,2.78,238.88,238.72,2.78]
[1732720477466,10.13715811,238.85,238.72,2.78]
[1732720477958,2.093,238.81,238.75,2.0934]
[1732720478160,2.093,238.81,238.72,2.78]
[1732720479159,12.91715811,238.88,238.73,10.13715811]
[1732720479758,12.91715811,238.88,238.76,10.13715811]
[1732720479759,2.78,238.88,238.76,10.13715811]
[1732720480263,2.5568,238.9,238.84,6.46012997]
[1732720480667,2.5568,238.9,238.82,6.46012997]
[1732720481359,9.01692997,238.9,238.82,6.46012997]
[1732720481559,0.42645,238.97,238.89,6.46012997]
[1732720481765,0.42645,238.97,238.91,6.46012997]
[1732720482063,0.42645,238.97,238.89,9.24012997]
[1732720482260,0.42645,238.97,238.89,2.78]
[1732720482462,2.51795,238.97,238.91,2.092]
[1732720482765,0.42645,238.97,238.89,2.78]
[1732720483261,0.42645,238.97,238.91,2.0921]
[1732720484062,2.51805,238.97,238.91,2.0921]
[1732720484257,0.42645,238.97,238.86,2.78]
[1732720484466,2.0919,238.94,238.86,2.78]
[1732720484663,2.0919,238.94,238.88,2.0922]
[1732720484863,0.42645,238.97,238.86,2.78]
[1732720485562,0.42645,238.97,238.9,2.0921]
[1732720485961,0.42645,238.97,238.88,10.09004]
[1732720486260,0.42645,238.97,238.94,2.0918]
[1732720487256,0.42645,238.97,238.93,2.78]
[1732720487762,2.78,239.17,238.93,2.78]
[1732720487965,10.09004,239.11,238.95,10.09004]
[1732720488165,2.78,239.17,238.91,10.09004]
[1732720488166,10.09004,239.07,238.91,10.09004]
[1732720488366,10.09004,239.07,238.94,2.0918]
[1732720488554,22.65004,239.07,238.94,4.8718]
[1732720488759,2.0914,239.0,238.94,4.8718]
[1732720488955,2.0914,239.0,238.94,2.78]
[1732720489161,2.0914,239.0,238.95,2.0917]
[1732720489357,2.05566109,239.05,238.88,10.09004]
[1732720489554,2.0914,238.99,238.89,2.78]
[1732720489754,2.0914,238.99,238.93,2.0918]
[1732720491766,2.0914,238.99,238.92,2.092]
[1732720492464,10.09004,239.04,238.82,15.0656]
[1732720492465,2.0917,238.95,238.87,2.0923]
[1732720492663,10.09004,239.01,238.88,2.78]
[1732720492863,2.5386,239.0,238.88,2.78]
[1732720493262,2.5386,239.0,238.91,2.092]
[1732720493566,2.5386,239.0,238.88,12.87004]
[1732720493761,2.5386,239.0,238.91,10.09004]
[1732720493961,4.63,239.0,238.93,2.0919]
[1732720495269,2.5386,239.0,238.88,12.87004]
[1732720496865,2.0915,238.98,238.91,2.092]
[1732720497370,2.0915,238.98,238.88,12.87004]
[1732720497371,2.5386,239.0,238.88,12.87004]
[1732720497569,2.5386,239.0,238.91,2.092]
[1732720497871,2.5386,239.0,238.88,10.09004]
[1732720498074,2.0918,238.95,238.88,2.78]
[1732720498474,2.0918,238.95,238.89,2.0921]
[1732720498971,2.0918,238.95,238.88,2.78]
[1732720499770,2.0918,238.95,238.89,2.0922]
[1732720499969,2.0918,238.94,238.85,10.09004]
[1732720500175,2.5386,239.0,238.85,10.09004]
[1732720500371,10.09004,238.99,238.87,2.0923]
[1732720500563,10.09004,238.99,238.83,1.2779]
[1732720500564,10.09004,238.96,238.83,1.2779]
[1732720500968,10.09004,238.96,238.85,2.0926]
[1732720501272,10.09004,238.96,238.83,1.2779]
[1732720502070,2.0918,238.95,238.88,2.0923]
[1732720502264,5.3186,239.0,238.85,10.09004]
[1732720502265,2.5386,239.0,238.85,10.09004]
[1732720502466,2.78,238.99,238.85,10.09004]
[1732720502667,3.40572927,238.99,238.85,10.09004]
[1732720502870,2.78,238.99,238.85,10.09004]
[1732720503075,10.09004,238.98,238.83,1.2779]
[1732720503271,10.09004,238.95,238.8,10.09004]
[1732720503470,2.0922,238.9,238.84,2.0926]
[1732720503666,2.78,238.92,238.8,10.09004]
[1732720504077,2.0922,238.89,238.84,2.0926]
[1732720504375,2.78,238.92,238.84,2.0926]
[1732720504979,2.0922,238.9,238.84,2.0926]
[1732720505174,2.78,238.92,238.84,2.0926]
[1732720505377,2.78,238.92,238.85,2.0926]
[1732720505680,10.09004,238.87,238.61,7.85727694]
[1732720505874,12.56,238.91,238.69,10.09004]
[1732720505875,10.09004,238.84,238.69,10.09004]
[1732720506078,2.78,238.83,238.75,10.09004]
[1732720506274,2.78,238.86,238.78,10.09004]
[1732720506675,2.0923,238.88,238.78,10.09004]
[1732720506873,2.78,238.9,238.78,10.09004]
[1732720507091,2.78,238.9,238.79,2.0931]
[1732720507577,10.09004,238.88,238.75,4.5903]
[1732720507776,10.09004,238.88,238.75,3.3757]
[1732720508284,2.0928,238.83,238.75,3.3757]
[1732720508581,10.09004,238.88,238.75,3.3757]
[1732720508886,2.0928,238.83,238.75,1.2823]
[1732720509086,2.0928,238.83,238.76,2.0934]
[1732720509879,2.0929,238.82,238.75,3.3758]
[1732720510081,2.76,238.83,238.75,1.2823]
[1732720510682,2.093,238.8,238.75,1.2823]
[1732720510978,2.76,238.83,238.75,1.2823]
[1732720511183,2.76,238.87,238.75,1.2823]
[1732720511378,2.76,238.87,238.77,10.09004]
[1732720512988,2.0926,238.85,238.79,2.0931]
[1732720513183,2.76,238.87,238.75,1.2823]
[1732720513378,10.09004,238.86,238.75,1.2823]
[1732720513582,2.0928,238.83,238.75,3.3757]
[1732720513783,10.09004,238.86,238.75,3.3757]
[1732720514184,2.093,238.8,238.75,3.3757]
[1732720514486,10.09004,238.86,238.68,12.85004]
[1732720514787,2.093,238.81,238.71,10.09004]
[1732720514982,10.09004,238.86,238.71,10.09004]
[1732720515183,10.09004,238.86,238.69,1.3042]
[1732720515784,10.09004,238.86,238.71,10.09004]
[1732720516480,2.093,238.8,238.71,10.09004]
[1732720516882,10.09004,238.86,238.75,2.0934]
[1732720517084,2.0929,238.81,238.75,2.0934]
[1732720517989,10.09004,238.86,238.71,10.09004]
[1732720518788,2.0929,238.82,238.74,2.0935]
[1732720518986,10.09004,238.86,238.74,2.0935]
[1732720519189,10.09004,238.83,238.69,1.3042]
[1732720519790,2.0931,238.79,238.74,2.0935]
[1732720519989,2.0931,238.79,238.69,1.3042]
[1732720520195,2.76,238.8,238.72,2.0937]
[1732720520395,2.0932,238.78,238.72,2.0937]
[1732720520792,2.76,238.8,238.59,2.76]
[1732720520793,2.0936,238.73,238.59,2.76]
[1732720520985,2.0936,238.73,238.63,1.3098]
[1732720521289,2.0934,238.76,238.69,2.094]
[1732720521589,2.5246,238.79,238.67,10.09004]
[1732720521795,1.2182,238.79,238.73,2.0936]
[1732720522289,1.2182,238.79,238.71,2.0937]
[1732720522489,3.3114,238.79,238.67,10.09004]
[1732720523593,3.3114,238.79,238.7,2.0938]
[1732720523892,3.3114,238.79,238.67,10.09004]
[1732720526691,2.0937,238.72,238.65,8.56137267]
[1732720527088,2.0937,238.72,238.65,6.46707267]
[1732720527400,8.56067267,238.73,238.66,2.0942]
[1732720527791,6.46707267,238.71,238.65,2.0943]
[1732720528588,6.46707267,238.71,238.66,2.0942]
[1732720528791,10.11116862,238.72,238.63,1.3098]
[1732720529095,10.11116862,238.72,238.57,10.11116862]
[1732720529291,2.76,238.75,238.56,2.76]
[1732720529292,2.0943,238.66,238.56,2.76]
[1732720529596,2.0943,238.66,238.55,1.2231]
[1732720530493,10.11116862,238.66,238.55,1.2231]
[1732720531095,2.0944,238.65,238.58,2.0949]
[1732720531299,5.2661,238.68,238.55,1.2231]
[1732720531800,2.0943,238.66,238.6,2.0947]
[1732720532596,7.3602,238.68,238.62,2.0945]
[1732720533402,2.0942,238.67,238.61,2.0947]
[1732720533697,5.2661,238.68,238.57,10.11116862]
[1732720533909,0.4373,238.79,238.67,2.0942]
[1732720533910,2.0936,238.73,238.67,2.0942]
[1732720534101,2.6335,238.78,238.66,10.11116862]
[1732720534393,2.6335,238.78,238.6,2.76]
[1732720534394,12.74466862,238.78,238.63,10.11116862]
[1732720534602,12.74466862,238.78,238.61,2.14562702]
[1732720534603,2.6335,238.78,238.66,10.11116862]
[1732720534996,2.76,238.82,238.69,10.11116862]
[1732720535197,0.4372,238.91,238.69,10.11116862]
[1732720535198,2.76,238.84,238.7,1.2491]
[1732720535794,10.11116862,238.85,238.72,10.11116862]
[1732720535989,2.6335,238.87,238.72,10.11116862]
[1732720536396,2.0926,238.85,238.72,10.11116862]